bitfinex/quotes_ETHUSD_20250106
["timestamp","ask_amount","ask_price","bid_price","bid_amount"]
[1736165345969,0.115,3653.8,3653.5,0.7665]
[1736165346171,0.05536578,3653.6,3653.5,0.7665]
[1736165346370,1.18726747,3653.6,3653.5,0.7665]
[1736165346577,0.0553807,3653.6,3653.5,0.7665]
[1736165347087,0.05536642,3653.6,3653.5,0.7665]
[1736165347571,1.30226747,3653.8,3653.5,0.7665]
[1736165347741,0.05534296,3653.6,3653.5,0.7665]
[1736165347941,1.30226747,3653.8,3653.5,0.7665]
[1736165348153,0.05532409,3653.6,3653.5,0.7665]
[1736165348379,1.30226747,3653.8,3653.5,0.7665]
[1736165348885,0.05531707,3653.7,3653.5,0.7665]
[1736165349250,1.30226747,3653.8,3653.5,0.7665]
[1736165349478,0.05543872,3653.7,3653.5,0.7665]
[1736165350221,0.115,3653.8,3653.5,0.7665]
[1736165350668,0.05536731,3653.7,3653.5,0.7665]
[1736165351203,0.115,3653.8,3653.5,0.7665]
[1736165351482,0.05531056,3653.7,3653.5,0.7665]
[1736165351872,0.115,3653.8,3653.5,0.7665]
[1736165352059,0.05526137,3653.6,3653.5,0.7665]
[1736165352263,0.115,3653.8,3653.5,0.7665]
[1736165352463,0.05531122,3653.7,3653.5,0.7665]
[1736165352990,0.115,3653.6,3653.5,0.7665]
[1736165353149,0.17026189,3653.6,3653.5,0.7665]
[1736165355170,0.0448,3653.5,3653.1,0.005]
[1736165355359,6.92458747,3653.2,3653.1,0.005]
[1736165355695,6.97967031,3653.2,3653.1,0.005]
[1736165356399,8.69919985,3653.2,3653.1,0.005]
[1736165357297,8.6598897,3653.2,3653.1,0.005]
[1736165357959,7.47262223,3653.2,3653.1,0.005]
[1736165358160,8.6598897,3653.2,3653.1,0.005]
[1736165358360,7.47262223,3653.2,3653.1,0.005]
[1736165358560,5.9225697,3653.2,3653.1,0.005]
[1736165359297,1.73530223,3653.2,3653.1,0.005]
[1736165359460,1.85030223,3653.2,3653.1,0.7805]
[1736165359660,1.85030223,3653.2,3653.1,0.005]
[1736165359661,3.0375697,3653.2,3653.1,0.005]
[1736165361102,3.0375697,3653.2,3653.1,1.3242]
[1736165361103,0.17008284,3653.2,3653.1,1.3242]
[1736165372827,0.05508284,3653.2,3653.1,1.3242]
[1736165373120,0.115,3653.2,3653.1,1.3242]
[1736165373306,0.16876474,3653.2,3653.1,1.3242]
[1736165381723,2.80152777,3653.2,3653.1,0.005]
[1736165381923,3.41292827,3653.2,3653.1,0.005]
[1736165382607,6.15024827,3653.2,3653.1,0.005]
[1736165383631,7.83380823,3653.2,3653.1,0.005]
[1736165384207,5.09648823,3653.2,3653.1,0.005]
[1736165385039,7.84099164,3653.2,3653.1,0.005]
[1736165386002,13.44419421,3653.2,3653.1,0.005]
[1736165387304,11.06692777,3653.2,3653.1,0.005]
[1736165387511,13.44419421,3653.2,3653.1,0.005]
[1736165388129,11.06692777,3653.2,3653.1,0.005]
[1736165388328,13.44419421,3653.2,3653.1,0.005]
[1736165390126,12.68249422,3653.2,3653.1,0.005]
[1736165391442,10.57831164,3653.2,3653.1,0.005]
[1736165392612,13.44727767,3653.2,3653.1,0.005]
[1736165395649,10.57261645,3653.2,3653.1,0.005]
[1736165396847,7.70365042,3653.2,3653.1,0.005]
[1736165398162,9.99892093,3653.2,3653.1,0.005]
[1736165398547,8.90282893,3653.2,3653.1,0.005]
[1736165398750,8.33622843,3653.2,3653.1,0.005]
[1736165402163,4.14759521,3653.2,3653.1,0.005]
[1736165403445,1.8523247,3653.2,3653.1,0.005]
[1736165404862,1.7373247,3653.2,3653.1,0.005]
[1736165405075,1.8523247,3653.2,3653.1,0.005]
[1736165406469,4.14759521,3653.2,3653.1,0.005]
[1736165407347,4.03259521,3653.2,3653.1,0.005]
[1736165407560,4.14759521,3653.2,3653.1,1.3366]
[1736165407771,4.14759521,3653.2,3653.1,4.074]
[1736165409080,0.16876474,3653.2,3653.1,4.074]
[1736165412768,0.16876474,3653.2,3653.1,1.3366]
[1736165424508,0.16876474,3653.2,3653.1,4.074]
[1736165432423,0.19355521,3653.2,3653.1,4.074]
[1736165434749,0.07855521,3653.2,3653.1,4.074]
[1736165435245,0.115,3653.4,3653.2,0.55]
[1736165437353,0.078662,3653.3,3653.2,0.55]
[1736165442262,0.078662,3653.3,3653.1,3.524]
[1736165443418,1.22656171,3653.3,3653.1,3.524]
[1736165443851,1.22656171,3653.3,3653.2,2.73732]
[1736165444059,1.22656171,3653.3,3653.2,4.82329819]
[1736165444261,1.22656171,3653.3,3653.2,4.79592732]
[1736165444760,0.078662,3653.3,3653.2,4.79592732]
[1736165444960,0.078662,3653.3,3653.2,39.82329546]
[1736165445165,1.14789971,3653.5,3653.4,3.48997]
[1736165445371,1.14789971,3653.5,3653.4,7.94617914]
[1736165446483,3.92438322,3655.3,3654.0,3.54472]
[1736165446484,1.14789971,3654.1,3654.0,3.54472]
[1736165446840,1.22291225,3654.1,3654.0,3.54472]
[1736165447367,0.07501254,3654.1,3654.0,3.54472]
[1736165447728,1.26289971,3654.4,3654.0,0.808]
[1736165447954,0.07539311,3654.3,3654.1,2.73662]
[1736165454449,0.0448,3654.2,3653.4,2.73711]
[1736165454647,1.23343322,3653.7,3653.2,0.7785]
[1736165454860,1.23343322,3653.7,3653.2,3.51581]
[1736165455063,0.07543126,3653.6,3653.2,3.51581]
[1736165455262,1.23343322,3653.7,3653.2,3.51581]
[1736165455451,0.07537142,3653.5,3653.2,3.51581]
[1736165455639,0.07542023,3653.6,3653.2,3.51581]
[1736165455840,0.07532259,3653.4,3653.2,3.51581]
[1736165456248,2.38133293,3653.7,3653.2,3.51581]
[1736165456578,2.79165118,3653.7,3653.2,2.73731]
[1736165456879,0.07547892,3653.6,3653.2,2.73731]
[1736165457987,0.07547892,3653.6,3653.1,0.005]
[1736165458277,1.18863322,3653.5,3653.1,0.005]
[1736165458577,1.18863322,3653.3,3653.1,0.005]
[1736165458775,0.1598,3653.2,3653.1,0.005]
[1736165458974,0.23504651,3653.2,3653.1,0.005]
[1736165462797,0.19024651,3653.2,3653.1,0.005]
[1736165463357,0.19024651,3653.2,3653.1,35.005]
[1736165463891,0.19024651,3653.2,3653.1,37.7424]
[1736165464098,0.115,3653.2,3653.1,2.7424]
[1736165464396,0.18970667,3653.2,3653.1,2.7424]
[1736165464787,0.07470667,3653.2,3653.1,2.7424]
[1736165464991,0.115,3653.3,3653.2,2.73732]
[1736165465490,0.18925405,3653.3,3653.2,2.73732]
[1736165465694,0.115,3653.3,3653.2,2.73732]
[1736165465857,0.18925405,3653.3,3653.2,2.73732]
[1736165466286,0.115,3653.3,3653.2,2.73732]
[1736165466992,0.115,3653.3,3653.1,0.005]
[1736165467361,0.07420521,3653.2,3653.1,0.005]
[1736165467562,0.115,3653.4,3653.1,2.74234]
[1736165467792,0.07425405,3653.3,3653.1,2.74234]
[1736165468863,0.0448,3653.2,3653.1,0.005]
[1736165469262,0.11900521,3653.2,3653.1,0.005]
[1736165469473,0.0448,3653.2,3653.1,0.005]
[1736165469966,0.11900521,3653.2,3653.1,0.005]
[1736165470169,0.0448,3653.2,3653.1,0.005]
[1736165470360,0.11900521,3653.2,3653.1,0.005]
[1736165471019,0.70309466,3653.2,3653.1,0.005]
[1736165471985,1.85099437,3653.2,3653.1,0.005]
[1736165473008,2.42494423,3653.2,3653.1,0.005]
[1736165473612,1.79605478,3653.2,3653.1,0.005]
[1736165474511,0.07420521,3653.2,3653.1,0.005]
[1736165474884,1.72184957,3653.3,3653.1,0.005]
[1736165475090,0.07417169,3653.2,3653.1,0.005]
[1736165475615,0.07418639,3653.2,3653.1,0.005]
[1736165475909,1.14640789,3653.2,3653.1,0.005]
[1736165476208,1.22063472,3653.2,3653.1,0.005]
[1736165477104,0.07422683,3653.2,3653.1,0.005]
[1736165477405,1.26140789,3653.4,3653.1,0.005]
[1736165477597,0.07422683,3653.2,3653.1,0.005]
[1736165477944,0.60280575,3653.3,3653.1,0.005]
[1736165478071,0.07422683,3653.2,3653.1,0.005]
[1736165478491,0.60280575,3653.3,3653.1,0.005]
[1736165478805,0.07417234,3653.2,3653.1,0.005]
[1736165478975,0.67050356,3653.2,3653.1,0.005]
[1736165479304,0.7446587,3653.2,3653.1,0.005]
[1736165479811,1.89106659,3653.2,3653.1,0.005]
[1736165482480,0.7446587,3653.2,3653.1,0.005]
[1736165483225,4.0122356,3654.5,3654.4,3.75762]
[1736165483426,4.0122356,3654.5,3654.4,6.50762]
[1736165483713,4.73616388,3654.8,3654.7,3.5074]
[1736165483714,2.00004388,3654.8,3654.7,3.5074]
[1736165483889,2.00004388,3654.8,3654.7,4.69499934]
[1736165484095,2.00004388,3654.8,3654.7,5.24499934]
[1736165484302,2.63217339,3656.5,3654.8,3.55]
[1736165484303,2.00004388,3655.1,3654.8,3.55]
[1736165484632,2.00004388,3655.1,3655.0,6.28597]
[1736165484789,2.00004388,3655.1,3655.0,7.73906693]
[1736165485691,2.05707207,3655.1,3655.0,7.82462407]
[1736165486115,0.05702819,3655.1,3655.0,12.59327003]
[1736165486711,0.125,3655.8,3655.3,0.55]
[1736165486912,0.125,3655.8,3655.7,2.73545]
[1736165488524,0.7577,3656.6,3655.8,2.73534]
[1736165488733,0.76398734,3656.5,3655.8,2.73534]
[1736165488931,0.82316018,3656.5,3655.8,2.73534]
[1736165492237,0.18417284,3656.5,3655.8,2.73534]
[1736165493036,0.18417284,3656.5,3655.4,2.73563]
[1736165493333,0.18417284,3656.5,3655.9,2.73527]
[1736165500738,0.18417284,3656.5,3656.0,2.7352]
[1736165500902,0.125,3656.4,3656.1,2.73512]
[1736165501520,0.125,3656.4,3655.6,2.73552]
[1736165501716,0.06041231,3656.3,3655.9,2.73526]
[1736165502210,0.125,3656.4,3655.9,2.73526]
[1736165502411,0.125,3656.4,3655.7,2.65152608]
[1736165502610,0.125,3656.4,3656.0,2.73522]
[1736165503743,0.125,3656.3,3656.0,2.73522]
[1736165504810,0.125,3656.3,3656.2,2.73508]
[1736165505144,0.125,3656.8,3656.6,2.73474]
[1736165505455,0.8984,3657.0,3656.3,0.02734631]
[1736165505646,0.8984,3657.0,3656.4,2.71757592]
[1736165505805,0.8984,3657.0,3656.4,5.45248592]
[1736165508525,0.05864823,3656.9,3656.4,5.45248592]
[1736165509441,0.8984,3657.0,3656.4,5.45248592]
[1736165510051,0.05864823,3656.9,3656.4,5.45248592]
[1736165510253,0.05864823,3656.9,3656.5,0.58287489]
[1736165510551,0.8984,3657.0,3656.5,3.31769489]
[1736165510717,0.125,3657.0,3656.5,3.31769489]
[1736165511546,0.05863031,3656.9,3656.6,2.73471]
[1736165511750,0.05863031,3656.9,3656.7,3.06644849]
[1736165511948,0.125,3657.0,3656.7,3.06644849]
[1736165512456,0.125,3657.0,3656.7,0.33175849]
[1736165512757,0.125,3657.0,3656.6,2.73476]
[1736165513117,0.125,3657.0,3656.7,2.7347]
[1736165513315,0.7893,3657.2,3656.7,2.76204397]
[1736165513514,0.7893,3657.2,3656.7,2.7347]
[1736165514331,0.89,3657.2,3657.0,2.73443]
[1736165514525,0.89,3657.2,3657.1,3.27106034]
[1736165516433,0.89,3657.2,3657.1,0.53666034]
[1736165517218,0.9436,3657.5,3657.1,0.53666034]
[1736165517430,0.04975774,3657.2,3657.1,0.53666034]
[1736165517628,0.9436,3657.5,3657.1,0.53666034]
[1736165517837,0.04975774,3657.2,3657.1,0.53666034]
[1736165518053,0.9436,3657.5,3657.1,0.53666034]
[1736165518252,0.04975774,3657.2,3656.9,6.15461339]
[1736165518455,0.9436,3657.5,3656.9,6.15461339]
[1736165521161,0.9436,3657.5,3656.9,3.52244]
[1736165521537,0.04976771,3657.4,3656.9,3.52244]
[1736165521950,0.9436,3657.5,3656.9,3.52244]
[1736165522136,0.9436,3657.5,3656.9,3.929684]
[1736165522336,0.05027693,3657.4,3656.9,3.929684]
[1736165522736,0.9436,3657.5,3656.9,3.929684]
[1736165522940,0.05020956,3657.3,3656.9,3.52244]
[1736165523266,0.05016085,3657.2,3656.9,38.52244]
[1736165523726,0.9436,3657.5,3656.9,38.52244]
[1736165525051,0.9436,3657.5,3656.9,35.7879]
[1736165526163,0.9436,3657.5,3656.9,0.7879]
[1736165526361,0.125,3657.5,3656.9,1.195153]
[1736165526533,0.125,3657.5,3657.0,35.0]
[1736165526735,0.125,3657.5,3656.9,1.195153]
[1736165526939,0.125,3657.5,3656.9,0.7879]
[1736165527159,0.125,3657.5,3656.9,35.7879]
[1736165528550,0.125,3657.5,3657.0,2.35837285]
[1736165529261,0.04994483,3657.4,3657.0,2.35837285]
[1736165529468,0.8218,3657.9,3657.3,0.55]
[1736165529767,0.8218,3657.9,3657.2,1.14006473]
[1736165529768,0.125,3657.7,3657.2,1.14006473]
[1736165530134,0.8208,3657.6,3657.2,1.14006473]
[1736165530328,0.8208,3657.6,3657.4,2.35837285]
[1736165530329,0.87143227,3657.6,3657.4,2.35837285]
[1736165531269,0.8208,3657.6,3657.1,1.14006473]
[1736165531457,0.05032544,3657.5,3657.1,1.14006473]
[1736165532059,0.05032544,3657.5,3657.2,2.36290865]
[1736165532771,0.05032544,3657.5,3657.0,1.14006473]
[1736165533454,0.05032544,3657.5,3657.1,2.36282236]
[1736165534288,0.05032544,3657.5,3657.2,0.94512894]
[1736165535660,0.05032544,3657.5,3656.9,0.5]
[1736165536064,0.125,3657.4,3656.9,0.5]
[1736165536391,0.17526572,3657.4,3657.0,0.94529371]
[1736165536567,0.80026572,3657.4,3657.0,0.94529371]
[1736165537557,0.75,3657.4,3657.0,0.94529371]
[1736165537758,0.05010995,3657.3,3656.9,0.5]
[1736165539192,0.8025,3657.2,3656.9,0.5]
[1736165539713,2.63217339,3657.1,3656.9,0.5]
[1736165540052,0.05014014,3657.0,3656.9,0.5]
[1736165541377,3.60692014,3657.0,3656.9,0.5]
[1736165542777,6.60692014,3657.0,3656.9,0.5]
[1736165552614,0.7588,3656.2,3655.7,35.7659]
[1736165553197,0.04920158,3656.1,3655.7,35.7659]
[1736165553383,0.7588,3656.2,3655.7,35.7659]
[1736165553813,0.04920158,3656.1,3655.7,35.7659]
[1736165554111,0.125,3656.1,3655.7,35.7659]
[1736165556532,0.125,3656.1,3655.7,38.50135]
[1736165556834,0.125,3656.1,3655.9,2.7353]
[1736165557730,0.125,3656.1,3656.0,2.73522]
[1736165558313,0.8056,3656.8,3656.1,0.8271]
[1736165558505,0.125,3656.5,3656.1,0.8271]
[1736165559094,0.04899534,3656.4,3656.1,0.8271]
[1736165561943,0.04894659,3656.3,3656.1,0.8271]
[1736165562327,0.125,3656.5,3656.1,0.8271]
[1736165562497,0.04889785,3656.2,3656.1,0.8271]
[1736165562703,0.125,3656.5,3656.1,0.8271]
[1736165563114,0.04897742,3656.4,3656.1,0.8271]
[1736165564252,0.125,3656.5,3656.1,0.8271]
[1736165564469,0.04901736,3656.4,3656.1,0.8271]
[1736165565256,0.125,3656.5,3656.1,0.8271]
[1736165565462,0.04899944,3656.4,3656.1,0.8271]
[1736165565626,0.125,3656.5,3656.1,0.8271]
[1736165566046,0.04922976,3656.4,3656.1,0.8271]
[1736165566227,0.125,3656.5,3656.1,0.8271]
[1736165566550,0.04908903,3656.4,3656.1,0.8271]
[1736165567211,0.125,3656.5,3656.1,0.8271]
[1736165567410,0.04908903,3656.4,3656.1,0.8271]
[1736165567612,0.125,3656.5,3655.6,0.7564]
[1736165567815,0.84362976,3656.4,3655.6,0.7564]
[1736165568722,1.21397674,3656.4,3655.6,0.7564]
[1736165571623,1.21397674,3656.4,3655.7,35.0]
[1736165571821,1.16474698,3656.4,3655.7,35.0]
[1736165572033,0.7944,3656.4,3655.7,37.73544]
[1736165574023,0.04908952,3656.3,3655.7,37.73544]
[1736165574223,0.7944,3656.4,3655.7,37.73544]
[1736165574562,0.04908952,3656.3,3655.7,37.73544]
[1736165574731,0.04908952,3656.3,3655.7,2.73544]
[1736165574927,0.7944,3656.4,3655.7,2.73544]
[1736165575260,0.04908952,3656.3,3655.8,35.0]
[1736165575432,0.7944,3656.4,3655.8,35.0]
[1736165576254,0.7944,3656.4,3655.7,2.73544]
[1736165576453,0.04905368,3656.3,3655.7,2.73544]
[1736165576634,0.7944,3656.4,3655.7,2.73544]
[1736165576833,0.04905368,3656.3,3655.7,37.73544]
[1736165577146,0.7944,3656.4,3655.7,37.73544]
[1736165577324,0.7944,3656.4,3655.8,0.94669822]
[1736165577525,0.7944,3656.4,3655.8,3.68202822]
[1736165577852,0.17305368,3656.3,3655.8,2.73533]
[1736165578054,0.17305368,3656.3,3655.9,35.0]
[1736165578236,0.124,3656.3,3655.9,35.0]
[1736165578438,0.124,3656.3,3655.8,2.73533]
[1736165578658,0.0489691,3656.2,3655.8,2.73533]
[1736165578968,0.0489691,3656.2,3655.8,37.73533]
[1736165579335,0.124,3656.3,3655.8,37.73533]
[1736165579557,0.7637,3656.7,3656.1,2.73512]
[1736165579886,0.124,3656.6,3656.1,2.76246798]
[1736165580184,0.124,3656.7,3656.3,2.73497]
[1736165581129,0.124,3656.7,3656.4,0.94664618]
[1736165582156,0.124,3656.7,3656.3,2.73497]
[1736165582461,0.124,3656.7,3656.2,1.14431047]
[1736165582681,0.7985,3657.3,3656.5,0.7631]
[1736165582979,0.17326194,3657.2,3656.6,3.084572]
[1736165583394,0.17326194,3657.2,3656.6,2.73477]
[1736165583758,0.17326194,3657.2,3656.7,0.94742995]
[1736165584236,0.124,3657.1,3656.6,37.73477]
[1736165584636,0.625,3657.4,3656.7,2.7347]
[1736165584867,0.124,3657.3,3656.7,2.7347]
[1736165585092,0.04955266,3657.2,3656.8,0.34978]
[1736165585437,0.625,3657.4,3656.9,0.8144]
[1736165585639,0.04960139,3657.3,3656.9,0.8144]
[1736165586055,0.04960139,3657.3,3656.9,3.18361086]
[1736165586379,0.749,3657.4,3656.9,5.91816086]
[1736165586599,0.749,3657.4,3657.0,2.76180196]
[1736165586895,0.749,3657.4,3657.0,2.36921086]
[1736165587967,0.749,3657.4,3657.1,0.94757332]
[1736165588137,0.04972977,3657.3,3657.1,0.94757332]
[1736165588973,0.04972977,3657.3,3656.9,1.7272717]
[1736165589337,0.749,3657.4,3656.9,1.7272717]
[1736165589537,0.749,3657.4,3656.9,0.8144]
[1736165589739,0.04972977,3657.3,3656.9,0.8144]
[1736165589951,0.04972977,3657.3,3657.0,0.94657637]
[1736165590148,0.749,3657.4,3657.0,0.94657637]
[1736165590350,0.04968104,3657.2,3657.0,0.94657637]
[1736165590569,0.625,3657.4,3657.0,0.94657637]
[1736165590814,0.625,3657.4,3656.9,0.8144]
[1736165591031,0.0497656,3657.3,3656.9,0.8144]
[1736165591315,0.0497656,3657.3,3657.2,2.63217339]
[1736165591490,0.0497656,3657.3,3657.2,6.73670339]
[1736165591688,4.39611913,3659.2,3657.4,0.8127]
[1736165591887,4.39611913,3659.2,3657.2,5.92394339]
[1736165591888,3.48949,3658.8,3657.7,2.73391]
[1736165592215,3.48949,3658.8,3657.6,0.8127]
[1736165592216,0.04772045,3658.7,3657.8,0.6206118]
[1736165592379,0.7947,3658.5,3657.6,0.8127]
[1736165592717,0.04602031,3658.4,3657.6,1.95701047]
[1736165593120,0.04602031,3658.4,3657.7,0.03483533]
[1736165593316,0.04602031,3658.4,3657.7,2.74145]
[1736165593503,0.04602031,3658.4,3657.8,0.70622918]
[1736165593706,0.04602031,3658.4,3657.9,2.76113398]
[1736165594014,0.7639,3658.8,3658.0,0.7579]
[1736165594201,0.04652854,3658.3,3658.0,0.7504]
[1736165594531,0.04647986,3658.2,3657.7,3.49324]
[1736165594941,0.124,3658.4,3657.7,3.49324]
[1736165595229,0.124,3658.4,3657.8,0.349324]
[1736165595403,0.04657987,3658.3,3657.8,0.349324]
[1736165598414,0.04657987,3658.3,3657.8,3.083174]
[1736165599002,0.04657987,3658.3,3657.8,0.349324]
[1736165600022,0.124,3658.5,3657.8,0.349324]
[1736165600209,0.777,3658.1,3657.4,3.54877]
[1736165600534,0.124,3658.4,3657.5,0.0075]
[1736165600926,0.04614719,3658.3,3657.5,0.0075]
[1736165601235,0.04614719,3658.3,3657.6,0.02733594]
[1736165601436,0.124,3658.4,3657.6,0.02733594]
[1736165601736,0.04614719,3658.3,3657.6,0.13994359]
[1736165602443,0.04614719,3658.3,3657.7,2.73395]
[1736165602609,0.17014719,3658.3,3657.7,2.73395]
[1736165603952,0.17014719,3658.3,3657.9,0.8099]
[1736165604148,0.17014719,3658.3,3658.0,2.76104262]
[1736165604372,0.17014719,3658.3,3658.1,0.38442703]
[1736165604569,0.124,3658.3,3658.1,0.38442703]
[1736165604718,0.04602173,3658.2,3658.1,0.38442703]
[1736165605372,0.901,3658.6,3658.1,0.35709426]
[1736165605569,0.901,3658.6,3657.9,0.8099]
[1736165605829,0.04459573,3658.5,3657.9,0.8099]
[1736165606161,0.04459573,3658.5,3657.6,3.63856359]
[1736165606503,0.04459573,3658.5,3657.7,2.73394]
[1736165607396,2.77795573,3658.5,3657.6,0.7646]
[1736165608798,0.04459573,3658.5,3657.6,1.114467]
[1736165608943,0.04459573,3658.5,3657.6,0.7646]
[1736165609299,0.04459573,3658.5,3657.7,2.73395]
[1736165609743,0.04459573,3658.5,3657.5,2.73409]
[1736165609901,0.7563,3658.4,3657.5,2.73409]
[1736165610098,0.04449836,3658.3,3657.6,0.0075]
[1736165610431,3.51984,3658.2,3657.3,0.7865]
[1736165610643,3.51984,3658.2,3656.9,2.31861743]
[1736165610835,0.04441198,3658.1,3657.1,0.5575]
[1736165611179,0.04441198,3658.1,3657.1,3.29184]
[1736165611837,0.8061,3658.0,3657.1,3.29184]
[1736165612137,0.8061,3658.0,3657.1,4.38978107]
[1736165612138,0.04431458,3657.9,3657.1,4.38978107]
[1736165612597,0.04431458,3657.9,3657.1,1.65544107]
[1736165612805,0.04431458,3657.9,3657.2,2.7343]
[1736165612982,0.8061,3658.0,3657.2,2.7343]
[1736165613183,0.04451521,3657.8,3657.2,2.7343]
[1736165613496,0.04446651,3657.7,3657.3,2.73424]
[1736165613703,0.8061,3658.0,3657.3,2.73424]
[1736165613941,0.04455342,3657.9,3657.3,2.73424]
[1736165614883,0.04455342,3657.9,3657.2,0.90788072]
[1736165615082,0.04455342,3657.9,3657.4,2.73418]
[1736165615314,0.04455342,3657.9,3657.4,3.90234227]
[1736165615641,0.04455342,3657.9,3657.4,0.41722227]
[1736165615788,0.04455342,3657.9,3657.3,0.5575]
[1736165615989,0.04455342,3657.9,3657.3,3.29175]
[1736165616516,0.04455342,3657.9,3657.4,2.73413]
[1736165617921,0.04455342,3657.9,3657.3,3.29175]
[1736165619398,0.04455342,3657.9,3657.4,2.73416]
[1736165620041,0.04455342,3657.9,3657.4,0.49232027]
[1736165620202,0.04455342,3657.9,3657.5,2.73408]
[1736165620764,0.04455342,3657.9,3657.3,3.29173]
[1736165621100,0.04455342,3657.9,3657.1,0.751]
[1736165621441,0.04455342,3657.9,3657.2,0.0075]
[1736165621623,0.04455342,3657.9,3657.2,2.74182]
[1736165621819,0.04455342,3657.9,3657.2,5.45939592]
[1736165622044,0.8061,3658.0,3657.2,2.74182]
[1736165622557,0.04302093,3657.9,3657.2,2.74182]
[1736165623058,0.8061,3658.0,3657.2,2.74182]
[1736165623353,0.04302093,3657.9,3657.2,2.74182]
[1736165625410,0.04302093,3657.9,3657.3,35.0]
[1736165627807,0.04302093,3657.9,3657.3,37.71757592]
[1736165628160,0.04302093,3657.9,3657.4,0.5575]
[1736165628522,0.8061,3658.0,3657.4,1.50287835]
[1736165629462,0.8061,3658.0,3657.4,0.5575]
[1736165630575,0.8061,3658.0,3657.5,0.94586759]
[1736165631059,0.04288538,3657.9,3657.5,0.94586759]
[1736165631259,0.04288538,3657.9,3657.5,2.36512785]
[1736165631460,0.8061,3658.0,3657.5,2.98909931]
[1736165632023,0.8061,3658.0,3657.5,0.62397146]
[1736165632233,0.8061,3658.0,3657.4,2.74162]
[1736165633165,0.8061,3658.0,3657.4,0.0075]
[1736165633367,0.8061,3658.0,3657.4,2.74167]
[1736165633871,0.8061,3658.0,3657.5,2.36630292]
[1736165634868,0.8061,3658.0,3657.6,0.94652117]
[1736165636142,0.8061,3658.0,3657.4,3.88203675]
[1736165636340,0.8061,3658.0,3657.4,6.59961267]
[1736165636937,0.8061,3658.0,3657.5,2.36778136]
[1736165637571,0.8061,3658.0,3657.4,3.88203675]
[1736165637572,0.8061,3658.0,3657.6,2.36778136]
[1736165638659,0.8061,3658.0,3657.7,0.94711254]
[1736165639329,0.8061,3658.0,3657.5,1.14036675]
[1736165640141,0.8061,3658.0,3657.6,2.36941981]
[1736165641066,1.1849629,3657.7,3657.6,2.36941981]
[1736165641271,0.366561,3658.0,3657.5,1.14036675]
[1736165641272,2.0042629,3657.9,3657.5,1.14036675]
[1736165641768,0.8193,3657.9,3657.5,1.14036675]
[1736165641930,0.8193,3657.9,3657.6,0.94799012]
[1736165642651,0.8193,3657.9,3657.3,1.14036675]
[1736165643261,3.5531,3657.9,3657.4,3.51059965]
[1736165643573,2.0042629,3657.9,3657.4,3.51059965]
[1736165643873,0.7994,3657.7,3657.4,3.51059965]
[1736165644057,0.7994,3657.7,3657.5,2.3702329]
[1736165644762,0.7994,3657.7,3657.3,1.14036675]
[1736165645266,1.1849629,3657.4,3657.3,1.14036675]
[1736165645566,4.74638541,3657.4,3657.3,1.14036675]
[1736165646144,7.74638541,3657.4,3657.3,1.14036675]
[1736165647073,2.73453,3657.0,3656.5,1.14036675]
[1736165647275,1.1849629,3656.7,3656.5,1.14036675]
[1736165647793,0.04042806,3656.6,3656.5,1.14036675]
[1736165648077,0.04042806,3656.6,3656.0,0.5575]
[1736165648240,0.04042806,3656.6,3656.0,1.44137922]
[1736165648444,1.1849629,3656.7,3656.0,1.44137922]
[1736165648881,0.9419,3656.9,3655.9,1.14036675]
[1736165648882,1.1849629,3656.5,3655.9,1.14036675]
[1736165649098,0.7883,3656.4,3656.1,0.94771812]
[1736165649394,2.73501,3656.3,3656.1,0.94771812]
[1736165649547,0.6192043,3656.3,3656.1,0.94771812]
[1736165649743,0.03994704,3656.2,3656.1,0.94771812]
[1736165650257,0.7883,3656.4,3656.1,0.94771812]
[1736165650457,0.0396133,3656.2,3655.5,2.7356]
[1736165650783,0.7883,3656.4,3655.5,2.76295098]
[1736165651078,0.7883,3656.4,3655.5,2.7356]
[1736165651280,0.03966205,3656.3,3655.3,4.70739675]
[1736165651583,0.8036,3656.2,3655.3,1.9990182]
[1736165651743,0.8036,3656.2,3655.4,0.0075]
[1736165652472,0.8036,3656.2,3655.4,5.11058888]
[1736165652666,0.8036,3656.2,3655.5,0.71096071]
[1736165655082,0.03960038,3656.1,3655.6,35.0]
[1736165655445,0.8036,3656.2,3655.7,0.5575]
[1736165655659,0.8036,3656.2,3655.7,3.29294]
[1736165655970,0.03939493,3656.1,3655.7,3.29294]
[1736165656160,0.03939493,3656.1,3655.8,35.0]
[1736165656658,0.8036,3656.2,3655.7,3.69333007]
[1736165656856,0.8036,3656.2,3655.7,0.95789007]
[1736165657058,0.03939493,3656.1,3655.7,0.5575]
[1736165657575,0.8036,3656.2,3655.7,0.5575]
[1736165658084,0.0393986,3656.1,3655.7,0.5575]
[1736165658449,0.8036,3656.2,3655.7,0.5575]
[1736165659043,0.8036,3656.2,3655.8,0.0075]
[1736165659480,0.7738,3656.5,3655.8,0.8156]
[1736165659687,0.03915219,3656.1,3655.8,0.8156]
[1736165659883,0.7738,3656.5,3655.8,3.53317592]
[1736165660247,0.7738,3656.5,3655.8,0.8156]
[1736165660248,0.03933245,3656.4,3655.8,0.8156]
[1736165664791,0.03933245,3656.4,3655.9,0.02734897]
[1736165664994,0.03933245,3656.4,3655.8,3.55096]
[1736165665659,0.03933245,3656.4,3655.8,0.8156]
[1736165666902,0.7738,3656.5,3655.8,0.8156]
[1736165667095,0.7738,3656.5,3655.8,1.225711]
[1736165667272,0.0393329,3656.4,3655.8,1.225711]
[1736165667669,0.7738,3656.5,3655.8,1.225711]
[1736165667869,0.0381329,3656.4,3655.8,1.225711]
[1736165668096,0.0381329,3656.4,3655.8,0.8156]
[1736165668298,0.7738,3656.5,3655.8,0.8156]
[1736165668596,0.03682894,3656.4,3655.7,0.5575]
[1736165668957,0.03682894,3656.4,3655.7,3.29293]
[1736165673013,0.03682894,3656.4,3655.7,4.47890098]